bitfinex-derivatives/quotes_SOLF0:USTF0_20250909
["timestamp","ask_amount","ask_price","bid_price","bid_amount"]
[1757388260133,7.73,212.14,212.06,3.74536451]
[1757388260336,7.73,212.14,212.07,3.74536451]
[1757388260638,7.73,212.14,212.05,3.13]
[1757388260937,7.73,212.14,212.06,3.74548964]
[1757388261137,7.73,212.14,212.07,3.74548964]
[1757388261338,7.73,212.14,212.05,3.13]
[1757388261534,7.73,212.14,212.06,3.74563088]
[1757388261737,7.73,212.14,212.08,3.13]
[1757388261941,7.73,212.16,212.1,3.13]
[1757388262140,7.73,212.16,212.12,3.13]
[1757388262340,7.73,212.2,212.12,3.13]
[1757388270334,7.73,212.24,212.17,3.13]
[1757388270740,2.69197418,212.28,212.17,3.13]
[1757388270741,7.90274249,212.27,212.17,3.13]
[1757388270943,15.63274249,212.27,212.17,3.13]
[1757388271142,7.73,212.27,212.17,3.13]
[1757388272636,7.73,212.27,212.16,2.69197418]
[1757388273147,7.73,212.24,212.14,3.13]
[1757388276350,1.72086154,212.22,212.16,1.72086154]
[1757388276544,7.73,212.21,212.14,3.13]
[1757388276743,9.45086154,212.22,212.16,1.72086154]
[1757388280651,7.73,212.22,212.16,1.72086154]
[1757388280850,1.72086154,212.21,212.16,1.72086154]
[1757388281445,150.0,212.27,212.16,1.72086154]
[1757388281646,1.72086154,212.21,212.16,4.86086154]
[1757388282043,7.73,212.2,212.16,4.86086154]
[1757388282448,1.72086154,212.21,212.16,4.86086154]
[1757388283049,1.72086154,212.21,212.16,3.14]
[1757388283643,9.09086154,212.21,212.15,4.85086154]
[1757388285741,7.37,212.3,212.21,3.13]
[1757388285942,7.37,212.31,212.25,1.72086154]
[1757388288244,1.72086154,212.3,212.25,1.72086154]
[1757388288845,7.37,212.29,212.25,1.72086154]
[1757388289251,1.72086154,212.3,212.25,1.72086154]
[1757388289643,7.37,212.29,212.25,1.72086154]
[1757388289848,1.72086154,212.3,212.25,1.72086154]
[1757388291154,7.37,212.29,212.23,4.85086154]
[1757388296758,1.72086154,212.33,212.25,1.72086154]
[1757388297062,7.37,212.32,212.25,1.72086154]
[1757388297762,1.72086154,212.31,212.25,1.72086154]
[1757388299952,7.37,212.3,212.25,1.72086154]
[1757388300150,1.72086154,212.29,212.23,1.72086154]
[1757388300757,1.72086154,212.27,212.21,1.72086154]
[1757388301059,7.37,212.26,212.18,3.13]
[1757388301262,1.72086154,212.25,212.18,3.13]
[1757388301475,7.37,212.24,212.18,3.13]
[1757388301760,7.37,212.22,212.17,1.72086154]
[1757388301962,9.09086154,212.23,212.17,1.72086154]
[1757388303761,9.09086154,212.23,212.18,3.13]
[1757388303955,9.09086154,212.23,212.17,4.85086154]
[1757388304156,9.09086154,212.23,212.17,3.13]
[1757388304356,9.09086154,212.23,212.17,4.85086154]
[1757388305864,9.09086154,212.23,212.17,1.72086154]
[1757388307566,9.09086154,212.23,212.14,3.13]
[1757388307863,7.37,212.2,212.14,4.85086154]
[1757388309067,9.09086154,212.23,212.16,4.85086154]
[1757388309367,7.37,212.23,212.19,3.13]
[1757388310667,1.72086154,212.25,212.19,3.13]
[1757388310859,7.37,212.24,212.19,3.13]
[1757388311767,1.72086154,212.25,212.19,3.13]
[1757388311972,9.09086154,212.25,212.19,3.13]
[1757388313766,9.09086154,212.25,212.18,1.72086154]
[1757388314560,7.48,212.22,212.17,1.72086154]
[1757388314866,7.48,212.22,212.15,1.72086154]
[1757388315062,1.72086154,212.21,212.15,1.72086154]
[1757388315572,1.72086154,212.21,212.14,3.13]
[1757388315767,1.72086154,212.21,212.15,1.72086154]
[1757388316165,7.48,212.22,212.15,1.72086154]
[1757388322379,1.72086154,212.21,212.15,1.72086154]
[1757388322575,7.48,212.2,212.15,1.72086154]
[1757388323485,1.72086154,212.21,212.15,1.72086154]
[1757388324179,7.48,212.2,212.15,1.72086154]
[1757388324373,1.72086154,212.21,212.15,1.72086154]
[1757388324575,9.20086154,212.21,212.15,1.72086154]
[1757388325882,9.20086154,212.21,212.14,3.13]
[1757388330781,7.48,212.21,212.15,4.85086154]
[1757388332087,7.48,212.21,212.16,1.70655465]
[1757388332291,7.48,212.22,212.16,1.70655465]
[1757388335084,9.18655465,212.25,212.19,3.13]
[1757388335288,7.48,212.25,212.2,1.70655465]
[1757388335696,7.48,212.28,212.22,1.70655465]
[1757388335887,7.48,212.28,212.23,3.13]
[1757388336200,7.48,212.29,212.22,4.83655465]
[1757388336382,7.48,212.29,212.22,3.13]
[1757388337287,7.48,212.29,212.23,3.74514465]
[1757388337592,7.48,212.29,212.22,3.13]
[1757388337792,7.48,212.29,212.23,3.74404053]
[1757388337992,7.48,212.29,212.22,3.13]
[1757388344701,7.48,212.29,212.23,3.7399854]
[1757388344900,7.48,212.29,212.22,3.13]
[1757388345101,7.48,212.29,212.23,3.73995151]
[1757388345297,7.48,212.29,212.22,3.13]
[1757388345495,7.48,212.29,212.23,3.73910252]
[1757388345801,7.48,212.29,212.22,3.13]
[1757388346002,7.48,212.29,212.21,2.66467083]
[1757388346003,7.58,212.35,212.23,6.86910252]
[1757388346203,7.58,212.35,212.23,3.13]
[1757388349303,7.58,212.35,212.23,5.79467083]
[1757388350406,7.58,212.35,212.23,2.66467083]
[1757388350603,7.58,212.35,212.27,3.13]
[1757388350901,7.58,212.35,212.3,3.13]
[1757388351098,7.58,212.35,212.29,2.66467083]
[1757388351297,2.66467083,212.4,212.29,2.66467083]
[1757388351501,7.58,212.42,212.3,3.13]
[1757388351698,7.58,212.42,212.33,3.13]
[1757388353503,7.58,212.42,212.35,2.66467083]
[1757388356002,7.58,212.42,212.36,3.13]
[1757388360507,7.58,212.42,212.29,3.13]
[1757388360812,152.66467083,212.49,212.34,21.96467083]
[1757388361010,152.66467083,212.49,212.35,3.13]
[1757388361011,7.58,212.47,212.35,3.13]
[1757388361412,7.58,212.47,212.37,2.66467083]
[1757388361813,7.58,212.47,212.35,3.13]
[1757388362015,7.58,212.47,212.37,2.66467083]
[1757388362811,7.58,212.47,212.37,5.79467083]
[1757388364210,7.58,212.47,212.38,3.13]
[1757388364814,7.58,212.47,212.4,2.66467083]
[1757388370320,7.58,212.47,212.4,5.79467083]
[1757388370926,7.58,212.47,212.43,2.66467083]
[1757388371224,7.58,212.47,212.44,3.13]
[1757388371822,7.58,212.49,212.43,2.66467083]
[1757388372325,7.58,212.49,212.43,5.79467083]
[1757388372522,150.0,212.53,212.44,3.13]
[1757388372729,2.66467083,212.63,212.5,2.66467083]
[1757388372937,7.58,212.62,212.5,2.66467083]
[1757388373424,7.58,212.62,212.5,5.79467083]
[1757388381725,7.58,212.62,212.51,2.66467083]
[1757388382632,2.66467083,212.62,212.47,3.13]
[1757388382832,7.63,212.61,212.49,2.66467083]
[1757388383923,150.0,212.6,212.49,2.66467083]
[1757388384124,7.63,212.59,212.49,2.66467083]
[1757388385339,7.63,212.59,212.49,5.79467083]
[1757388387342,150.0,212.58,212.44,29.01467083]
[1757388387540,150.0,212.57,212.44,29.01467083]
[1757388387741,7.63,212.56,212.44,29.01467083]
[1757388388038,7.63,212.58,212.45,3.13]
[1757388393445,7.63,212.58,212.45,5.79467083]
[1757388395543,7.63,212.58,212.46,3.13]
[1757388396341,1.70132114,212.57,212.5,4.83132114]
[1757388396745,7.63,212.56,212.5,4.83132114]
[1757388397846,7.63,212.56,212.52,1.70132114]
[1757388398051,1.70132114,212.58,212.52,1.70132114]
[1757388398052,7.63,212.57,212.52,1.70132114]
[1757388398248,1.70132114,212.58,212.52,1.70132114]
[1757388398452,7.63,212.57,212.52,1.70132114]
[1757388398652,1.70132114,212.58,212.52,1.70132114]
[1757388398847,7.63,212.57,212.52,1.70132114]
[1757388399251,7.63,212.57,212.52,4.83132114]
[1757388399455,1.70132114,212.58,212.52,4.83132114]
[1757388400254,7.63,212.57,212.52,4.83132114]
[1757388400648,1.70132114,212.58,212.52,1.70132114]
[1757388401053,7.63,212.57,212.52,1.70132114]
[1757388401254,1.70132114,212.58,212.52,1.70132114]
[1757388401553,7.63,212.57,212.52,1.70132114]
[1757388402054,1.70132114,212.58,212.52,1.70132114]
[1757388402452,7.63,212.57,212.52,1.70132114]
[1757388402857,1.70132114,212.58,212.52,1.70132114]
[1757388403952,7.65,212.57,212.52,1.70132114]
[1757388404152,150.0,212.63,212.52,1.70132114]
[1757388404358,7.65,212.58,212.52,1.70132114]
[1757388409453,7.90274249,212.65,212.54,1.70132114]
[1757388409654,15.55274249,212.7,212.64,3.11]
[1757388409854,1.70132114,212.76,212.66,1.70132114]
[1757388410160,7.65,212.75,212.67,4.79083028]
[1757388410358,7.65,212.75,212.68,4.79083028]
[1757388410558,7.65,212.75,212.66,1.70132114]
[1757388410754,7.65,212.75,212.67,4.78687133]
[1757388410959,7.65,212.75,212.68,4.78687133]
[1757388411258,7.65,212.75,212.66,1.70132114]
[1757388411656,7.65,212.73,212.66,1.70132114]
[1757388412762,7.65,212.73,212.64,3.11]
[1757388412966,7.65,212.73,212.66,1.70132114]
[1757388417675,1.70132114,212.69,212.55,3.11]
[1757388417865,30.47,212.83,212.55,3.11]
[1757388417866,7.65,212.63,212.56,4.44020747]
[1757388418167,7.65,212.63,212.59,3.11]
[1757388418359,7.65,212.63,212.6,1.70132114]
[1757388418564,7.65,212.68,212.62,1.70132114]
[1757388421964,0.02975298,212.67,212.63,0.03537943]
[1757388422269,7.65,212.66,212.63,0.03537943]
[1757388422670,1.73107412,212.67,212.63,0.03537943]
[1757388422866,0.02975298,212.67,212.63,0.03537943]
[1757388423171,7.65,212.66,212.63,0.03537943]
[1757388423370,1.73107412,212.67,212.63,0.03537943]
[1757388423772,7.65,212.66,212.63,0.03537943]
[1757388424073,1.73107412,212.67,212.63,0.03537943]
[1757388424666,7.65,212.66,212.63,0.03537943]
[1757388424862,1.73107412,212.67,212.63,0.03537943]
[1757388425062,7.65,212.66,212.63,0.03537943]
[1757388425474,1.73107412,212.67,212.63,0.03537943]
[1757388425675,7.65,212.66,212.63,0.03537943]
[1757388425871,1.70132114,212.65,212.63,0.03537943]
[1757388426076,7.65,212.64,212.63,0.03537943]
[1757388445396,150.0,212.66,212.63,0.03537943]
[1757388445696,7.59,212.65,212.63,0.03537943]
[1757388447494,150.0,212.66,212.63,0.03537943]
[1757388447696,7.61975298,212.67,212.63,0.03537943]
[1757388447900,0.02975298,212.67,212.64,3.11]
[1757388448099,0.02975298,212.67,212.64,4.81132114]
[1757388448997,7.61975298,212.67,212.64,4.81132114]
[1757388450896,0.02975298,212.67,212.64,1.70132114]
[1757388451102,0.02975298,212.67,212.63,0.03537943]
[1757388451103,0.02975298,212.67,212.66,4.82132114]
[1757388452102,0.02975298,212.67,212.66,3.12]
[1757388452302,0.02975298,212.67,212.66,1.70132114]
[1757388452703,0.02975298,212.67,212.66,4.82132114]
[1757388454898,0.02975298,212.67,212.63,0.03537943]
[1757388455098,7.61975298,212.67,212.64,9.10811197]
[1757388455400,7.61975298,212.67,212.65,4.28679083]
[1757388455600,0.02975298,212.67,212.64,1.70132114]
[1757388455802,0.02975298,212.67,212.66,3.12]
[1757388456198,0.02975298,212.67,212.66,7.40659338]
[1757388456599,0.02975298,212.67,212.66,3.12]
[1757388458106,0.02975298,212.67,212.66,7.40642598]
[1757388467214,0.02975298,212.67,212.66,3.12]
[1757388472312,0.02975298,212.67,212.66,7.86814244]
[1757388478313,0.02975298,212.67,212.66,7.38814244]
[1757388480025,0.02975298,212.67,212.66,3.12]
[1757388480421,0.02975298,212.67,212.64,3.1]
[1757388481020,7.74,212.77,212.64,3.1]
[1757388481021,7.74,212.77,212.65,3.07]
[1757388481217,316.1,212.92,212.72,2.65429406]
[1757388481218,7.74,212.82,212.72,2.65429406]
[1757388481422,7.74,212.82,212.73,3.07]
[1757388482226,7.74,212.82,212.63,8.20315314]
[1757388482227,7.74,212.82,212.75,3.10283728]
[1757388482727,7.74,212.82,212.75,5.72429406]
[1757388483133,7.74,212.82,212.76,0.0320932]
[1757388487633,7.74,212.89,212.78,3.07]
[1757388488034,7.74,212.89,212.8,2.65429406]
[1757388488334,7.74,212.89,212.81,0.03230546]
[1757388489637,7.74,212.89,212.81,3.10230546]
[1757388493139,7.74,212.89,212.81,5.75659952]
[1757388493639,7.74,212.89,212.81,3.10230546]
[1757388493835,7.74,212.89,212.81,5.75659952]
[1757388497038,7.74,212.89,212.82,3.07]
[1757388497838,150.0,212.88,212.81,0.03230546]
[1757388498034,7.21,212.87,212.81,0.03230546]
[1757388499434,7.21,212.93,212.84,3.07]
[1757388500141,7.21,212.93,212.86,0.0355634]
[1757388500737,9.86429406,212.93,212.86,0.0355634]
[1757388501142,7.21,212.93,212.86,0.0355634]
[1757388506043,7.21,212.93,212.87,3.07]
[1757388507649,7.21,212.93,212.86,0.0355634]
[1757388508749,7.21,212.91,212.86,0.0355634]
[1757388509438,9.86429406,212.91,212.86,0.0355634]
[1757388509645,7.21,212.89,212.86,0.0355634]
[1757388510946,117.42,212.9,212.86,0.0355634]
[1757388511145,7.21,212.89,212.86,0.0355634]
[1757388511351,117.42,212.9,212.86,0.0355634]
[1757388511548,7.21,212.89,212.86,0.0355634]
[1757388512146,124.53,212.9,212.86,0.0355634]
[1757388512545,7.21,212.88,212.86,0.0355634]
[1757388514050,150.0,212.89,212.86,0.0355634]
[1757388514350,7.21,212.88,212.86,0.0355634]
[1757388514554,267.24,212.89,212.86,0.0355634]
[1757388515147,7.21,212.88,212.86,0.0355634]
[1757388515343,267.24,212.89,212.86,0.0355634]
[1757388515544,7.21,212.88,212.86,0.0355634]
[1757388515948,150.0,212.89,212.86,0.0355634]
[1757388516158,7.21,212.88,212.86,0.0355634]
[1757388516553,267.22,212.89,212.86,0.0355634]
[1757388516752,7.21,212.88,212.86,0.0355634]
[1757388517053,267.22,212.89,212.86,0.0355634]
[1757388517254,7.21,212.88,212.86,0.0355634]
[1757388517454,267.22,212.89,212.86,0.0355634]
[1757388517652,7.21,212.88,212.86,0.0355634]
[1757388518245,267.22,212.89,212.86,0.0355634]
[1757388518654,117.12,212.88,212.86,0.0355634]
[1757388518857,7.21,212.87,212.86,0.0355634]
[1757388520059,7.21,212.88,212.86,0.0355634]
[1757388520652,150.0,212.89,212.86,3.0955634]
[1757388520857,157.21,212.89,212.86,4.79168705]
[1757388522151,7.21,212.88,212.86,1.73168705]
[1757388522352,157.21,212.89,212.86,4.79168705]
[1757388523351,7.21,212.89,212.86,4.79168705]
[1757388524657,7.21,212.89,212.86,3.0955634]
[1757388524957,7.21,212.89,212.86,4.79168705]
[1757388525553,7.21,212.89,212.86,1.73168705]
[1757388526159,117.04,212.93,212.88,1.69612365]
[1757388526956,7.54,212.92,212.88,1.69612365]
[1757388527657,7.54,212.92,212.89,3.07]
[1757388528158,7.54,212.92,212.9,1.69612365]
[1757388529358,150.0,212.96,212.9,4.76612365]
[1757388529759,150.0,212.96,212.9,1.69612365]
[1757388529955,7.54,212.95,212.91,0.03495945]
[1757388530159,150.0,212.96,212.91,0.03495945]
[1757388530550,7.54,212.95,212.91,0.03495945]
[1757388530955,150.0,212.96,212.91,0.03495945]
[1757388531163,7.54,212.95,212.91,0.03495945]
[1757388531352,150.0,212.96,212.91,0.03495945]
[1757388531561,7.54,212.95,212.91,0.03495945]
[1757388531758,150.0,212.96,212.91,0.03495945]
[1757388531955,7.54,212.95,212.91,0.03495945]
[1757388532762,150.0,212.96,212.91,0.03495945]
[1757388533160,7.54,212.95,212.91,0.03495945]
[1757388533462,150.0,212.96,212.91,0.03495945]
[1757388533665,150.0,212.96,212.91,3.10495945]
[1757388533959,7.54,212.95,212.91,3.10495945]
[1757388534158,150.0,212.96,212.91,3.10495945]
[1757388534558,7.54,212.95,212.91,3.10495945]
[1757388535163,150.0,212.96,212.91,4.8010831]
[1757388535466,7.54,212.95,212.91,4.8010831]
[1757388535663,150.0,212.96,212.91,4.8010831]
[1757388535866,7.54,212.95,212.91,4.8010831]
[1757388536255,150.0,212.96,212.91,4.8010831]
[1757388536771,7.54,212.95,212.91,4.8010831]
[1757388537063,150.0,212.96,212.91,4.8010831]
[1757388537963,7.54,212.95,212.91,4.8010831]
[1757388538467,7.54,212.97,212.91,4.8010831]
[1757388539661,7.54,212.97,212.92,1.69612365]
[1757388539861,295.26658501,212.98,212.92,1.69612365]
[1757388540063,7.54,212.97,212.92,1.69612365]
[1757388541168,295.26658501,212.98,212.92,1.69612365]
[1757388541365,7.54,212.97,212.92,1.69612365]
[1757388541864,7.54,212.93,212.91,0.03495945]
[1757388542270,1.69612365,212.94,212.91,0.03495945]
[1757388542472,7.54,212.93,212.91,0.03495945]
[1757388542866,1.69612365,212.94,212.91,0.03495945]
[1757388543871,7.54,212.93,212.91,0.03495945]
[1757388544068,1.69612365,212.94,212.91,0.03495945]
[1757388544263,7.54,212.93,212.91,0.03495945]
[1757388544464,1.69612365,212.94,212.91,0.03495945]
[1757388544660,7.54,212.93,212.91,0.03495945]
[1757388544869,1.69612365,212.94,212.91,0.03495945]
[1757388545662,7.54,212.93,212.91,0.03495945]
[1757388546366,1.69612365,212.94,212.91,0.03495945]
[1757388547072,7.54,212.93,212.91,0.03495945]
[1757388547266,1.69612365,212.94,212.91,0.03495945]
[1757388547472,7.54,212.93,212.91,0.03495945]
[1757388547671,1.69612365,212.94,212.91,0.03495945]
[1757388547873,9.23612365,212.92,212.91,0.03495945]
[1757388548070,125.55612365,212.92,212.91,0.03495945]
[1757388548270,125.53612365,212.92,212.91,0.03495945]
[1757388548973,123.84,212.92,212.91,0.03495945]
[1757388553171,123.78,212.92,212.91,0.03495945]
[1757388554474,7.54,212.92,212.91,0.03495945]
[1757388557672,116.14,212.94,212.91,4.7810831]
[1757388557673,7.25,212.94,212.91,4.7810831]
[1757388560787,116.0,212.94,212.91,0.03495945]
[1757388561283,7.25,212.93,212.91,0.03495945]
[1757388561680,116.0,212.94,212.91,0.03495945]
[1757388561881,7.25,212.93,212.91,0.03495945]
[1757388562684,116.0,212.94,212.91,0.03495945]
[1757388562884,7.25,212.93,212.91,0.03495945]
[1757388563089,116.0,212.94,212.91,0.03495945]
[1757388563287,7.25,212.93,212.91,0.03495945]
[1757388563592,116.0,212.94,212.91,0.03495945]
[1757388564085,7.25,212.93,212.91,0.03495945]
[1757388564284,116.0,212.94,212.91,0.03495945]
[1757388564484,7.25,212.93,212.91,0.03495945]
[1757388565191,116.0,212.94,212.91,0.03495945]
[1757388565389,7.25,212.93,212.91,0.03495945]
[1757388565584,116.0,212.94,212.91,0.03495945]
[1757388565986,7.25,212.93,212.91,0.03495945]
[1757388566290,116.0,212.94,212.91,0.03495945]
[1757388566890,7.25,212.93,212.91,0.03495945]
[1757388567087,116.0,212.94,212.91,0.03495945]
[1757388567693,7.25,212.93,212.91,0.03495945]
[1757388567894,116.0,212.94,212.91,0.03495945]
[1757388568094,7.25,212.93,212.91,0.03495945]
[1757388568296,116.0,212.94,212.91,0.03495945]
[1757388568486,7.25,212.93,212.91,0.03495945]
[1757388568686,150.0,212.96,212.91,0.03495945]
[1757388568890,273.03,212.96,212.92,3.05]
[1757388569096,265.78,212.96,212.91,0.03495945]
[1757388569494,7.25,212.95,212.91,0.03495945]
[1757388569895,265.78,212.96,212.91,0.03495945]
[1757388570192,7.25,212.95,212.91,0.03495945]
[1757388570593,265.78,212.96,212.91,0.03495945]
[1757388570791,7.25,212.95,212.91,0.03495945]
[1757388571796,265.78,212.96,212.91,0.03495945]
[1757388571999,7.25,212.95,212.91,0.03495945]
[1757388572198,7.25,212.95,212.92,1.69612365]
[1757388572797,265.78,212.96,212.92,1.69612365]
[1757388573000,7.25,212.95,212.92,1.69612365]
[1757388573294,265.78,212.96,212.92,1.69612365]
[1757388574799,7.25,212.95,212.92,1.69612365]
[1757388575000,265.78,212.96,212.92,1.69612365]
[1757388575598,7.25,212.95,212.92,1.69612365]
[1757388576201,265.66,212.96,212.92,1.69612365]
[1757388576702,7.25,212.95,212.92,1.69612365]
[1757388576903,265.66,212.96,212.92,1.69612365]
[1757388577104,7.25,212.95,212.92,1.69612365]
[1757388577596,265.66,212.96,212.92,1.69612365]
[1757388577802,7.25,212.95,212.92,1.69612365]
[1757388578002,265.66,212.96,212.92,1.69612365]
[1757388578202,7.25,212.95,212.92,1.69612365]
[1757388578801,265.66,212.96,212.92,1.69612365]
[1757388579304,7.25,212.95,212.92,1.69612365]
[1757388579902,265.66,212.96,212.92,1.69612365]
[1757388580206,7.25,212.95,212.92,1.69612365]
[1757388580408,265.66,212.96,212.91,0.03495945]
[1757388580609,7.25,212.95,212.91,0.03495945]
[1757388581111,265.66,212.96,212.91,0.03495945]
[1757388581908,122.77,212.98,212.92,4.19292274]
[1757388582108,122.77,212.98,212.91,0.03495945]
[1757388591711,7.56,212.96,212.91,0.03495945]
[1757388592512,115.5,212.95,212.91,0.03495945]
[1757388592913,7.56,212.94,212.91,0.03495945]
[1757388593318,115.5,212.95,212.91,0.03495945]
[1757388593718,150.0,212.97,212.91,0.03495945]
[1757388594019,123.06,212.96,212.91,0.03495945]
[1757388594209,7.56,212.96,212.91,0.03495945]
[1757388594413,7.56,212.94,212.91,0.03495945]
[1757388595118,115.5,212.95,212.91,0.03495945]
[1757388595320,7.56,212.94,212.91,0.03495945]
[1757388595915,115.5,212.95,212.91,0.03495945]
[1757388596112,7.56,212.94,212.91,0.03495945]
[1757388596319,115.5,212.95,212.91,0.03495945]
[1757388596518,7.56,212.94,212.91,0.03495945]
[1757388596715,115.5,212.95,212.91,0.03495945]
[1757388597012,7.56,212.94,212.91,0.03495945]
[1757388597420,115.5,212.95,212.91,0.03495945]
[1757388597811,7.56,212.94,212.91,0.03495945]
[1757388598215,7.56,212.95,212.91,0.03495945]
[1757388600412,7.56,212.95,212.93,3.05]
[1757388600609,7.56,212.95,212.92,3.05]
[1757388600818,265.5,212.97,212.92,3.05]
[1757388601215,7.56,212.96,212.93,4.21156792]
[1757388601415,7.56,212.96,212.92,3.05]
[1757388601621,150.0,212.97,212.93,6.85821185]
[1757388601916,7.56,212.96,212.94,4.2098087]
[1757388602114,7.56,212.96,212.93,5.69794218]
[1757388602316,7.56,212.96,212.94,4.20918163]
[1757388602619,7.56,212.96,212.93,5.69794218]
[1757388602815,7.56,213.02,212.95,3.05]
[1757388603024,7.56,213.05,213.01,3.05]
[1757388603210,7.56,213.07,213.01,3.05]
[1757388603413,7.56,213.07,213.01,3.08227659]
[1757388604721,7.56,213.07,213.01,0.03227659]
[1757388613323,115.46,213.06,213.01,0.03227659]
[1757388613633,7.53,213.05,213.01,0.03227659]
[1757388614931,115.46,213.06,213.01,0.03227659]
[1757388615236,7.53,213.05,213.01,0.03227659]
[1757388619236,115.46,213.06,213.01,0.03227659]
[1757388619436,150.0,213.07,213.01,0.03227659]
[1757388619838,157.53,213.07,213.01,0.03227659]
[1757388626736,157.53,213.07,213.02,3.05]
[1757388626941,7.53,213.06,213.02,3.05]
[1757388627442,7.53,213.06,213.01,0.03227659]
[1757388627641,150.0,213.07,213.04,3.05]
[1757388627837,7.53,213.06,213.03,2.64794218]
[1757388628343,7.53,213.06,213.03,5.69794218]
[1757388630338,167.58001868,213.1,213.03,3.05]
[1757388630543,7.53,213.09,213.01,2.68021877]
[1757388631341,7.53,213.09,213.02,3.06]
[1757388631538,7.53,213.09,213.04,3.06]
[1757388631942,7.53,213.09,213.03,2.64794218]
[1757388632241,7.53,213.16,213.07,3.06]
[1757388632439,15.43274249,213.23,213.08,4.18654057]
[1757388632743,7.53,213.23,213.16,3.06]
[1757388633532,7.53,213.23,213.17,0.03205999]
[1757388634239,7.53,213.23,213.18,2.64794218]
[1757388634541,7.53,213.32,213.21,2.64794218]
[1757388634752,7.53,213.32,213.24,2.64794218]
[1757388635244,7.53,213.32,213.26,0.03040074]
[1757388635440,7.53,213.32,213.18,3.06]
[1757388635643,7.53,213.32,213.18,5.70794218]
[1757388636044,7.53,213.32,213.21,2.64794218]
[1757388637447,7.53,213.32,213.18,5.70794218]
[1757388638349,2.64794218,213.31,213.18,5.70794218]
[1757388638644,7.53,213.3,213.18,5.70794218]
[1757388639446,7.53,213.27,213.17,0.191]
[1757388640444,1.69077838,213.22,213.17,0.191]
[1757388640646,7.53,213.21,213.17,0.191]
[1757388640847,1.69077838,213.2,213.17,0.191]
[1757388641852,7.53,213.19,213.17,0.191]
[1757388642043,1.69077838,213.2,213.17,0.191]
[1757388642448,1.69077838,213.18,213.17,0.191]
[1757388642649,9.22077838,213.18,213.1,1.69077838]
[1757388643550,7.6,213.15,213.08,1.69077838]
[1757388643851,7.6,213.13,213.05,4.97077838]
[1757388644050,7.6,213.11,213.05,1.69077838]
[1757388647554,7.6,213.11,213.04,3.28]
[1757388647751,7.6,213.06,212.97,3.28]
[1757388647948,9.29077838,213.06,212.98,1.69077838]
[1757388648252,7.6,213.06,213.0,4.97077838]
[1757388650157,9.29077838,213.06,213.0,3.28]
[1757388650356,1.69077838,213.02,212.94,1.69077838]
[1757388651056,1.69077838,213.0,212.93,4.97077838]
[1757388651255,9.29077838,213.0,212.93,4.97077838]
[1757388651655,7.6,213.0,212.95,1.69077838]
[1757388651853,1.69077838,213.02,212.95,1.69077838]
[1757388652054,7.6,213.01,212.93,4.97077838]
[1757388652250,1.69077838,213.0,212.93,4.97077838]
[1757388652652,7.6,213.01,212.93,4.97077838]
[1757388652958,9.29077838,213.01,212.95,1.69077838]
[1757388653354,9.29077838,213.01,212.93,4.97077838]
[1757388653559,7.6,212.98,212.9,7.88]
[1757388653756,7.6,212.98,212.92,1.69077838]
[1757388655558,1.69077838,213.0,212.94,1.69077838]
[1757388656260,7.6,213.01,212.95,3.28]
[1757388656454,7.6,213.08,213.01,3.28]
[1757388656655,7.6,213.14,213.07,1.69077838]
[1757388658961,7.6,213.14,213.08,1.69077838]
[1757388659563,1.69077838,213.16,213.08,4.97077838]
[1757388661258,7.6,213.18,213.08,4.97077838]
[1757388661458,1.69077838,213.17,213.08,4.97077838]
[1757388661858,1.69077838,213.17,213.1,1.69077838]